fUSD/lending_fUSD_20250208
["ID","MTS","AMOUNT","RATE_DAILY","PERIOD"]
[352238538,1739013099985,-520.59904714,0.00011821,2]
[352238539,1739013099994,-500.0,0.00011821,2]
[352238540,1739013100003,-500.0,0.00011821,2]
[352238541,1739013100013,-500.0,0.00011821,2]
[352238542,1739013100022,-637.97,0.00011821,2]
[352238543,1739013100032,-500.0,0.00011821,2]
[352238544,1739013100042,-500.0,0.00011821,2]
[352238545,1739013100051,-500.0,0.00011821,2]
[352238546,1739013100061,-500.0,0.00011821,2]
[352238547,1739013100070,-500.0,0.00011821,2]
[352238548,1739013100079,-500.0,0.00011821,2]
[352238549,1739013100088,-500.0,0.00011821,2]
[352238550,1739013100097,-764.68,0.00011821,2]
[352238551,1739013100107,-500.0,0.00011821,2]
[352238552,1739013100117,-500.0,0.00011821,2]
[352238553,1739013100127,-500.0,0.00011821,2]
[352238554,1739013100138,-634.37,0.00011821,2]
[352238555,1739013100147,-598.43,0.00011821,2]
[352238556,1739013100156,-500.0,0.00011821,2]
[352238557,1739013100165,-500.0,0.00011821,2]
[352238558,1739013100175,-500.0,0.00011821,2]
[352238559,1739013100186,-500.0,0.00011821,2]
[352238560,1739013100196,-468.2188956,0.00011821,2]
[352238561,1739013100205,-500.0,0.00011821,2]
[352238562,1739013100214,-500.0,0.00011821,2]
[352238563,1739013100225,-882.42,0.00011821,2]
[352238564,1739013100234,-500.0,0.00011821,2]
[352238565,1739013100243,-500.0,0.00011821,2]
[352238566,1739013100252,-500.0,0.00011821,2]
[352238567,1739013100261,-783.22,0.00011821,2]
[352238568,1739013100270,-503.1,0.00011821,2]
[352238569,1739013100280,-500.0,0.00011821,2]
[352238570,1739013100289,-500.0,0.00011821,2]
[352238571,1739013100299,-500.0,0.00011821,2]
[352238572,1739013100308,-500.0,0.00011821,2]
[352238573,1739013100318,-500.0,0.00011821,2]
[352238574,1739013100327,-500.0,0.00011821,2]
[352238575,1739013100336,-895.58,0.00011821,2]
[352238576,1739013100347,-500.0,0.00011821,2]
[352238577,1739013100357,-500.0,0.00011821,2]
[352238578,1739013100369,-500.0,0.00011821,2]
[352238579,1739013100379,-500.0,0.00011821,2]
[352238580,1739013100388,-500.0,0.00011821,2]
[352238581,1739013100397,-898.09,0.00011821,2]
[352238582,1739013100410,-500.0,0.00011821,2]
[352238583,1739013100420,-600.0,0.00011821,2]
[352238584,1739013100429,-443.53026172,0.00011821,2]
[352238585,1739013100438,-500.0,0.00011821,2]
[352238586,1739013100447,-500.0,0.00011821,2]
[352238587,1739013100458,-288.31084986,0.00011821,2]
[352238588,1739013100467,-500.0,0.00011821,2]
[352238589,1739013100477,-569.54761458,0.00011821,2]
[352238590,1739013100487,-500.0,0.00011821,2]
[352238591,1739013100497,-500.0,0.00011821,2]
[352238592,1739013100507,-500.0,0.00011821,2]
[352238593,1739013100517,-500.0,0.00011821,2]
[352238594,1739013100526,-582.41147922,0.00011821,2]
[352238595,1739013100536,-500.0,0.00011821,2]
[352238596,1739013100548,-309.62429365,0.00011821,2]
[352238597,1739013100558,-503.79,0.00011821,2]
[352238598,1739013100569,-500.0,0.00011821,2]
[352238599,1739013100579,-500.0,0.00011821,2]
[352238600,1739013100588,-500.0,0.00011821,2]
[352238601,1739013100598,-500.0,0.00011821,2]
[352238602,1739013100608,-500.0,0.00011821,2]
[352238603,1739013100619,-500.0,0.00011821,2]
[352238604,1739013100629,-315.91326952,0.00011821,2]
[352238605,1739013100638,-500.0,0.00011821,2]
[352238606,1739013100648,-500.0,0.00011821,2]
[352238607,1739013100658,-500.0,0.00011821,2]
[352238608,1739013100667,-651.32,0.00011821,2]
[352238609,1739013100677,-711.88,0.00011821,2]
[352238610,1739013100686,-526.52,0.00011821,2]
[352238611,1739013100696,-500.0,0.00011821,2]
[352238612,1739013100707,-500.0,0.00011821,2]
[352238613,1739013100716,-946.77,0.00011821,2]
[352238614,1739013100725,-1188.28,0.00011821,2]
[352238615,1739013100734,-500.0,0.00011821,2]
[352238616,1739013100743,-500.0,0.00011821,2]
[352238617,1739013100752,-891.2,0.00011821,2]
[352238618,1739013100761,-500.0,0.00011821,2]
[352238619,1739013100770,-500.0,0.00011821,2]
[352238620,1739013100779,-500.0,0.00011821,2]
[352238621,1739013100788,-500.0,0.00011821,2]
[352238622,1739013100797,-500.0,0.00011821,2]
[352238623,1739013100806,-1073.14,0.00011821,2]
[352238624,1739013100816,-500.0,0.00011821,2]
[352238625,1739013100825,-500.0,0.00011821,2]
[352238626,1739013100834,-500.0,0.00011821,2]
[352238627,1739013100843,-621.38,0.00011821,2]
[352238628,1739013100852,-500.0,0.00011821,2]
[352238629,1739013100862,-500.0,0.00011821,2]
[352238630,1739013100871,-602.2,0.00011821,2]
[352238631,1739013100881,-500.0,0.00011821,2]
[352238632,1739013100891,-502.46,0.00011821,2]
[352238633,1739013100900,-1923.99,0.00011821,2]
[352238634,1739013100909,-500.0,0.00011821,2]
[352238635,1739013100918,-500.0,0.00011821,2]
[352238636,1739013100928,-1042.08,0.00011821,2]
[352238637,1739013100937,-527.8873155,0.00011821,2]
[352238638,1739013100947,-753.74,0.00011821,2]
[352238639,1739013100956,-721.0,0.00011821,2]
[352238640,1739013100965,-604.54,0.00011821,2]
[352238641,1739013100974,-603.14,0.00011821,2]
[352238642,1739013100983,-860.81,0.00011821,2]
[352238643,1739013100992,-890.4,0.00011821,2]
[352238644,1739013101001,-931.55,0.00011821,2]
[352238645,1739013101020,-1239.47,0.00011821,2]
[352238646,1739013101029,-2019.59,0.00011821,2]
[352238647,1739013101038,-755.49,0.00011821,2]
[352238648,1739013101049,-500.0,0.00011821,2]
[352238649,1739013101059,-837.9,0.00011821,2]
[352238650,1739013101068,-500.0,0.00011821,2]
[352238651,1739013101077,-500.0,0.00011821,2]
[352238652,1739013101087,-572.48,0.00011821,2]
[352238653,1739013101096,-500.0,0.00011821,2]
[352238654,1739013101105,-1033.35,0.00011821,2]
[352238655,1739013101115,-499.23576813,0.00011821,2]
[352238656,1739013101124,-500.0,0.00011821,2]
[352238657,1739013101134,-500.0,0.00011821,2]
[352238658,1739013101143,-2008.9,0.00011821,2]
[352238659,1739013101155,-500.0,0.00011821,2]
[352238660,1739013101164,-500.0,0.00011821,2]
[352238661,1739013101174,-500.0,0.00011821,2]
[352238662,1739013101183,-696.95,0.00011821,2]
[352238663,1739013101192,-723.92,0.00011821,2]
[352238664,1739013101203,-500.0,0.00011821,2]
[352238665,1739013101212,-504.96,0.00011821,2]
[352238666,1739013101221,-2033.67,0.00011821,2]
[352238667,1739013101231,-500.0,0.00011821,2]
[352238668,1739013101241,-2296.52,0.00011821,2]
[352238669,1739013101250,-500.0,0.00011821,2]
[352238670,1739013101260,-593.97309147,0.00011821,2]
[352238671,1739013101269,-1085.81,0.00011821,2]
[352238672,1739013101279,-500.0,0.00011821,2]
[352238673,1739013101289,-929.17,0.00011821,2]
[352238674,1739013101299,-500.0,0.00011821,2]
[352238675,1739013101308,-727.02,0.00011821,2]
[352238676,1739013101318,-991.68,0.00011821,2]
[352238677,1739013101327,-500.0,0.00011821,2]
[352238678,1739013101336,-502.35367665,0.00011821,2]
[352238679,1739013101345,-500.0,0.00011821,2]
[352238680,1739013101355,-500.0,0.00011821,2]
[352238681,1739013101367,-500.56,0.00011821,2]
[352238682,1739013101376,-775.33,0.00011821,2]
[352238683,1739013101385,-402.78473389,0.00011821,2]
[352238684,1739013101394,-500.0,0.00011821,2]
[352238685,1739013101403,-746.97,0.00011821,2]
[352238686,1739013101412,-1543.04,0.00011821,2]
[352238687,1739013101421,-500.0,0.00011821,2]
[352238688,1739013101431,-500.0,0.00011821,2]
[352238689,1739013101441,-987.5,0.00011821,2]
[352238690,1739013101452,-500.0,0.00011821,2]
[352238691,1739013101461,-505.99394125,0.00011821,2]
[352238692,1739013101471,-500.0,0.00011821,2]
[352238693,1739013101481,-2244.47,0.00011821,2]
[352238694,1739013101490,-500.0,0.00011821,2]
[352238695,1739013101500,-850.11,0.00011821,2]
[352238696,1739013101509,-500.0,0.00011821,2]
[352238697,1739013101519,-738.4,0.00011821,2]
[352238698,1739013101528,-500.0,0.00011821,2]
[352238699,1739013101537,-2170.82,0.00011821,2]
[352238700,1739013101548,-883.23,0.00011821,2]
[352238701,1739013101557,-500.0,0.00011821,2]
[352238702,1739013101567,-500.0,0.00011821,2]
[352238703,1739013101577,-500.0,0.00011821,2]
[352238704,1739013101586,-500.0,0.00011821,2]
[352238705,1739013101595,-1022.79,0.00011821,2]
[352238706,1739013101605,-500.0,0.00011821,2]
[352238707,1739013101615,-500.0,0.00011821,2]
[352238708,1739013101626,-500.0,0.00011821,2]
[352238709,1739013101637,-1744.67,0.00011821,2]
[352238710,1739013101647,-500.0,0.00011821,2]
[352238711,1739013101658,-815.19,0.00011821,2]
[352238712,1739013101667,-503.52,0.00011821,2]
[352238713,1739013101677,-721.28,0.00011821,2]
[352238714,1739013101686,-500.0,0.00011821,2]
[352238715,1739013101695,-500.0,0.00011821,2]
[352238716,1739013101705,-500.0,0.00011821,2]
[352238717,1739013101714,-500.0,0.00011821,2]
[352238718,1739013101723,-833.37,0.00011821,2]
[352238719,1739013101732,-500.0,0.00011821,2]
[352238720,1739013101741,-869.88,0.00011821,2]
[352238721,1739013101751,-500.0,0.00011821,2]
[352238722,1739013101760,-500.0,0.00011821,2]
[352238723,1739013101770,-500.0,0.00011821,2]
[352238724,1739013101779,-1093.73,0.00011821,2]
[352238725,1739013101789,-500.0,0.00011821,2]
[352238726,1739013101799,-500.0,0.00011821,2]
[352238727,1739013101808,-665.78,0.00011821,2]
[352238728,1739013101818,-1222.11,0.00011821,2]
[352238729,1739013101828,-500.0,0.00011821,2]
[352238730,1739013101837,-500.0,0.00011821,2]
[352238731,1739013101845,-500.0,0.00011821,2]
[352238732,1739013101855,-508.71,0.00011821,2]
[352238733,1739013101863,-500.0,0.00011821,2]
[352238734,1739013101874,-500.0,0.00011821,2]
[352238735,1739013101883,-557.94,0.00011821,2]
[352238736,1739013101892,-505.3407101,0.00011821,2]
[352238737,1739013101902,-500.0,0.00011821,2]
[352238738,1739013101911,-152.0,0.00011839,4]
[352238739,1739013101920,-214.0,0.0001189,2]
[352238740,1739013101929,-175.6723907,0.0001189,2]
[352238741,1739013101938,-1059.0,0.00011893,2]
[352238742,1739013101948,-797.14,0.00011894,2]
[352238743,1739013101956,-1731.03,0.00011894,2]
[352238744,1739013101966,-500.0,0.00011894,2]
[352238745,1739013101975,-668.35,0.00011894,2]
[352238746,1739013101984,-2004.66,0.00011894,2]
[352238747,1739013101993,-1077.05,0.00011894,2]
[352238748,1739013102003,-2089.48,0.00011894,2]
[352238749,1739013102012,-500.0,0.00011894,2]
[352238750,1739013102021,-1253.82,0.00011894,2]
[352238751,1739013102032,-1374.02,0.00011894,2]
[352238752,1739013102041,-2869.72,0.00011894,2]
[352238753,1739013102050,-500.0,0.00011894,2]
[352238754,1739013102059,-1294.44,0.00011894,2]
[352238755,1739013102068,-983.53,0.00011894,2]
[352238756,1739013102078,-933.79,0.00011894,2]
[352238757,1739013102245,-1322.64,0.00011894,2]
[352238758,1739013102254,-900.11,0.00011894,2]
[352238759,1739013102264,-795.17,0.00011894,2]
[352238760,1739013102274,-956.97,0.00011894,2]
[352238761,1739013102284,-1034.64,0.00011894,2]
[352238762,1739013102294,-2154.87,0.00011894,2]
[352238763,1739013102303,-909.52,0.00011894,2]
[352238764,1739013102313,-814.41,0.00011894,2]
[352238765,1739013102322,-853.96,0.00011894,2]
[352238766,1739013102332,-1757.52,0.00011894,2]
[352238767,1739013102342,-500.0,0.00011894,2]
[352238768,1739013102351,-1223.58,0.00011894,2]
[352238769,1739013102362,-500.0,0.00011894,2]
[352238770,1739013102374,-500.0,0.00011894,2]
[352238771,1739013102383,-500.0,0.00011894,2]
[352238772,1739013102392,-500.0,0.00011894,2]
[352238773,1739013102403,-500.0,0.00011894,2]
[352238774,1739013102412,-500.0,0.00011894,2]
[352238775,1739013102421,-500.0,0.00011894,2]
[352238776,1739013102431,-500.0,0.00011894,2]
[352238777,1739013102442,-500.0,0.00011894,2]
[352238778,1739013102451,-500.0,0.00011894,2]
[352238779,1739013102460,-500.0,0.00011894,2]
[352238780,1739013102469,-500.0,0.00011894,2]
[352238781,1739013102478,-500.0,0.00011894,2]
[352238782,1739013102487,-500.0,0.00011894,2]
[352238783,1739013102496,-500.0,0.00011894,2]
[352238784,1739013102506,-500.0,0.00011894,2]
[352238785,1739013102515,-500.0,0.00011894,2]
[352238786,1739013102524,-500.0,0.00011894,2]
[352238787,1739013102534,-500.0,0.00011894,2]
[352238788,1739013102545,-500.0,0.00011894,2]
[352238789,1739013102554,-500.0,0.00011894,2]
[352238790,1739013102563,-500.0,0.00011894,2]
[352238791,1739013102572,-500.0,0.00011894,2]
[352238792,1739013102581,-500.0,0.00011894,2]
[352238793,1739013102590,-500.0,0.00011894,2]
[352238794,1739013102599,-500.0,0.00011894,2]
[352238795,1739013102608,-1771.87,0.00011894,2]
[352238796,1739013102617,-500.0,0.00011894,2]
[352238797,1739013102627,-500.0,0.00011894,2]
[352238798,1739013102636,-500.0,0.00011894,2]
[352238799,1739013102646,-500.0,0.00011894,2]
[352238800,1739013102655,-500.0,0.00011894,2]
[352238801,1739013102664,-1197.12,0.00011894,2]
[352238802,1739013102674,-500.0,0.00011894,2]
[352238803,1739013102683,-500.0,0.00011894,2]
[352238804,1739013102692,-500.0,0.00011894,2]
[352238805,1739013102702,-500.0,0.00011894,2]
[352238806,1739013102711,-500.0,0.00011894,2]
[352238807,1739013102720,-500.0,0.00011894,2]
[352238808,1739013102729,-500.0,0.00011894,2]
[352238809,1739013102738,-500.0,0.00011894,2]
[352238810,1739013102748,-500.0,0.00011894,2]
[352238811,1739013102757,-500.0,0.00011894,2]
[352238812,1739013102766,-500.0,0.00011894,2]
[352238813,1739013102776,-500.0,0.00011894,2]
[352238814,1739013102785,-500.0,0.00011894,2]
[352238815,1739013102795,-500.0,0.00011894,2]
[352238816,1739013102805,-500.0,0.00011894,2]
[352238817,1739013102814,-500.0,0.00011894,2]
[352238818,1739013102823,-500.0,0.00011894,2]
[352238819,1739013102833,-500.0,0.00011894,2]
[352238820,1739013102842,-500.0,0.00011894,2]
[352238821,1739013102852,-500.0,0.00011894,2]
[352238822,1739013102861,-500.0,0.00011894,2]
[352238823,1739013102871,-500.0,0.00011894,2]
[352238824,1739013102881,-500.0,0.00011894,2]
[352238825,1739013102891,-500.0,0.00011894,2]
[352238826,1739013102900,-500.0,0.00011894,2]
[352238827,1739013102909,-500.0,0.00011894,2]
[352238828,1739013102919,-500.0,0.00011894,2]
[352238829,1739013102929,-500.0,0.00011894,2]
[352238830,1739013102938,-500.0,0.00011894,2]
[352238831,1739013102948,-500.0,0.00011894,2]
[352238832,1739013102957,-935.0,0.00011894,2]
[352238833,1739013102967,-500.0,0.00011894,2]
[352238834,1739013102976,-768.54,0.00011894,2]
[352238835,1739013102986,-1395.95,0.00011894,2]
[352238836,1739013102995,-974.36,0.00011894,2]
[352238837,1739013103006,-500.0,0.00011894,2]
[352238838,1739013103015,-1653.78,0.00011894,2]
[352238839,1739013103024,-500.0,0.00011894,2]
[352238840,1739013103033,-1136.85,0.00011894,2]
[352238841,1739013103042,-547.7,0.00011894,2]
[352238842,1739013103052,-815.55,0.00011894,2]
[352238843,1739013103062,-1561.4,0.00011894,2]
[352238844,1739013103073,-676.39,0.00011894,2]
[352238845,1739013103083,-933.77,0.00011894,2]
[352238846,1739013103092,-727.83,0.00011894,2]
[352238847,1739013103102,-678.91,0.00011894,2]
[352238848,1739013103112,-500.0,0.00011894,2]
[352238849,1739013103121,-804.99,0.00011894,2]
[352238850,1739013103130,-500.0,0.00011894,2]
[352238851,1739013103140,-1045.63,0.00011894,2]
[352238852,1739013103149,-878.01,0.00011894,2]
[352238853,1739013103158,-874.83,0.00011894,2]
[352238854,1739013103167,-1287.44,0.00011894,2]
[352238855,1739013103177,-1828.17,0.00011894,2]
[352238856,1739013103187,-1372.8,0.00011894,2]
[352238857,1739013103196,-500.0,0.00011894,2]
[352238858,1739013103205,-500.0,0.00011894,2]
[352238859,1739013103215,-1591.32,0.00011894,2]
[352238860,1739013103225,-1277.24,0.00011894,2]
[352238861,1739013103234,-609.5,0.00011894,2]
[352238862,1739013103243,-1105.29,0.00011894,2]
[352238863,1739013103252,-1133.97,0.00011894,2]
[352238864,1739013103262,-2052.84,0.00011894,2]
[352238865,1739013103271,-1506.96,0.00011894,2]
[352238866,1739013103281,-500.0,0.00011894,2]
[352238867,1739013103292,-585.89,0.00011894,2]
[352238868,1739013103302,-2183.67,0.00011894,2]
[352238869,1739013103312,-1881.39,0.00011894,2]
[352238870,1739013103322,-346.19650091,0.000119,2]
[352238871,1739013103332,-191.93871814,0.000119,2]
[352238872,1739013103342,-163.18,0.00011945,2]
[352238873,1739013103351,-2624.82,0.00011954,2]
[352238874,1739013103363,-2311.14,0.00011954,2]
[352238875,1739013103374,-1530.98,0.00011954,2]
[352238876,1739013103384,-2112.49,0.00011954,2]
[352238877,1739013103394,-5023.57,0.00011954,2]
[352238878,1739013103405,-4357.4,0.00011954,2]
[352238879,1739013103415,-500.0,0.00011954,2]
[352238880,1739013103425,-3534.9,0.00011954,2]
[352238881,1739013103435,-3593.71,0.00011954,2]
[352238882,1739013103447,-1030.68,0.00011954,2]
[352238883,1739013103457,-1465.28,0.00011954,2]
[352238884,1739013103466,-2712.71,0.00011954,2]
[352238885,1739013103476,-3901.85,0.00011954,2]
[352238886,1739013103485,-5908.12,0.00011954,2]
[352238887,1739013103495,-5342.84,0.00011954,2]
[352238888,1739013103504,-2391.85,0.00011954,2]
[352238889,1739013103514,-2076.57,0.00011954,2]
[352238890,1739013103524,-500.0,0.00011954,2]
[352238891,1739013103533,-5698.13,0.00011954,2]
[352238892,1739013103543,-2309.9,0.00011954,2]
[352238893,1739013103553,-2212.02,0.00011954,2]
[352238894,1739013103563,-500.0,0.00011954,2]
[352238895,1739013103573,-755.52,0.00011954,2]
[352238896,1739013103582,-1450.19,0.00011954,2]
[352238897,1739013103591,-755.35,0.00011954,2]
[352238898,1739013103601,-1681.08,0.00011954,2]
[352238899,1739013103610,-1214.99,0.00011954,2]
[352238900,1739013103620,-500.0,0.00011954,2]
[352238901,1739013103630,-623.04,0.00011954,2]
[352238902,1739013103640,-2156.18,0.00011954,2]
[352238903,1739013103650,-5375.13,0.00011954,2]
[352238904,1739013103659,-1130.4,0.00011954,2]
[352238905,1739013103669,-2448.76,0.00011954,2]
[352238906,1739013103678,-633.10561043,0.00011954,2]
[352238907,1739013103688,-1595.13,0.00011954,2]
[352238908,1739013103698,-500.0,0.00011955,2]
[352238909,1739013103708,-500.0,0.00011955,2]
[352238910,1739013103717,-647.25,0.00011955,2]
[352238911,1739013103726,-500.0,0.00011955,2]
[352238912,1739013103736,-500.0,0.00011955,2]
[352238913,1739013103745,-500.0,0.00011955,2]
[352238914,1739013103755,-510.2,0.00011955,2]
[352238915,1739013103764,-500.0,0.00011955,2]
[352238916,1739013103773,-591.73874994,0.00011955,2]
[352238917,1739013103784,-500.0,0.00011955,2]
[352238918,1739013103793,-500.0,0.00011955,2]
[352238919,1739013103805,-2124.11,0.00011955,2]
[352238920,1739013103815,-5893.56,0.00011955,2]
[352238921,1739013103824,-3358.801698,0.00011955,2]
[352238922,1739013103834,-1726.29,0.00011955,2]
[352238923,1739013103843,-2160.36,0.00011955,2]
[352238924,1739013103852,-576.21,0.00011955,2]
[352238925,1739013103861,-1327.73,0.00011955,2]
[352238926,1739013103871,-3645.58,0.00011955,2]
[352238927,1739013103880,-3378.237504,0.00011955,2]
[352238928,1739013103889,-152.091761,0.00011955,2]
[352238929,1739013103899,-774.41,0.00011955,2]
[352238930,1739013103908,-2948.09,0.00011955,2]
[352238931,1739013103917,-2267.8,0.00011955,2]
[352238932,1739013103927,-1001.04,0.00011955,2]
[352238933,1739013103936,-500.0,0.00011955,2]
[352238934,1739013103945,-1847.11,0.00011955,2]
[352238935,1739013103954,-500.0,0.00011955,2]
[352238936,1739013103963,-1735.24,0.00011955,2]
[352238937,1739013103973,-1678.32,0.00011955,2]
[352238938,1739013103983,-3512.39,0.00011955,2]
[352238939,1739013103992,-3805.67,0.00011955,2]
[352238940,1739013104001,-2607.62,0.00011955,2]
[352238941,1739013104011,-3258.61,0.00011955,2]
[352238942,1739013104020,-4739.99,0.00011955,2]
[352238943,1739013104029,-12222.98,0.00011955,2]
[352238944,1739013104039,-3871.33,0.00011955,2]
[352238945,1739013104050,-5557.03,0.00011955,2]
[352238946,1739013104060,-500.0,0.00011955,2]
[352238947,1739013104070,-500.0,0.00011955,2]
[352238948,1739013104079,-8192.71,0.00011955,2]
[352238949,1739013104089,-2796.47,0.00011955,2]
[352238950,1739013104098,-538.39,0.00011955,2]
[352238951,1739013104107,-555.96,0.00011955,2]
[352238952,1739013104117,-1656.22,0.00011955,2]
[352238953,1739013104127,-5463.22,0.00011955,2]
[352238954,1739013104137,-4928.16,0.00011955,2]
[352238955,1739013104147,-4249.23,0.00011955,2]
[352238956,1739013104157,-500.0,0.00011955,2]
[352238957,1739013104167,-500.0,0.00011955,2]
[352238958,1739013104176,-500.0,0.00011955,2]
[352238959,1739013104186,-500.0,0.00011956,2]
[352238960,1739013104198,-500.0,0.00011956,2]
[352238961,1739013104207,-787.27,0.00011956,2]
[352238962,1739013104217,-500.0,0.00011956,2]
[352238963,1739013104226,-500.0,0.00011956,2]
[352238964,1739013104235,-517.87,0.00011956,2]
[352238965,1739013104244,-500.0,0.00011956,2]
[352238966,1739013104254,-500.0,0.00011956,2]
[352238967,1739013104263,-500.0,0.00011956,2]
[352238968,1739013104273,-500.0,0.00011956,2]
[352238969,1739013104282,-500.0,0.00011956,2]
[352238970,1739013104292,-661.99,0.00011956,2]
[352238971,1739013104302,-500.0,0.00011956,2]
[352238972,1739013104312,-821.02,0.00011956,2]
[352238973,1739013104321,-500.0,0.00011956,2]
[352238974,1739013104331,-1772.05,0.00011956,2]
[352238975,1739013104341,-500.0,0.00011956,2]
[352238976,1739013104363,-500.0,0.00011956,2]
[352238977,1739013104373,-500.0,0.00011956,2]
[352238978,1739013104383,-964.41,0.00011956,2]
[352238979,1739013104393,-896.8,0.00011956,2]
[352238980,1739013104404,-500.0,0.00011956,2]
[352238981,1739013104414,-2054.77,0.00011956,2]
[352238982,1739013104423,-500.0,0.00011956,2]
[352238983,1739013104434,-500.0,0.00011956,2]
[352238984,1739013104445,-500.0,0.00011956,2]
[352238985,1739013104455,-1316.88,0.00011956,2]
[352238986,1739013104464,-500.0,0.00011956,2]
[352238987,1739013104474,-500.0,0.00011956,2]
[352238988,1739013104484,-500.0,0.00011956,2]
[352238989,1739013104494,-2052.96,0.00011956,2]
[352238990,1739013104503,-500.0,0.00011956,2]
[352238991,1739013104513,-500.0,0.00011956,2]
[352238992,1739013104522,-500.0,0.00011956,2]
[352238993,1739013104532,-500.0,0.00011956,2]
[352238994,1739013104541,-500.0,0.00011956,2]
[352238995,1739013104552,-811.38,0.00011956,2]
[352238996,1739013104563,-1019.72,0.00011956,2]
[352238997,1739013104573,-500.0,0.00011956,2]
[352238998,1739013104583,-500.0,0.00011956,2]
[352238999,1739013104594,-705.84,0.00011956,2]
[352239000,1739013104604,-500.0,0.00011956,2]
[352239001,1739013104614,-2537.39,0.00011956,2]
[352239002,1739013104624,-500.0,0.00011956,2]
[352239003,1739013104634,-716.34,0.00011956,2]
[352239004,1739013104644,-500.0,0.00011956,2]
[352239005,1739013104654,-500.0,0.00011956,2]
[352239006,1739013104663,-936.48,0.00011956,2]
[352239007,1739013104673,-1011.69,0.00011956,2]
[352239008,1739013104682,-500.0,0.00011956,2]
[352239009,1739013104692,-500.0,0.00011956,2]
[352239010,1739013104701,-874.09,0.00011956,2]
[352239011,1739013104711,-726.83,0.00011956,2]
[352239012,1739013104720,-500.0,0.00011956,2]
[352239013,1739013104730,-500.0,0.00011956,2]
[352239014,1739013104739,-500.0,0.00011956,2]
[352239015,1739013104749,-500.0,0.00011956,2]
[352239016,1739013104758,-500.0,0.00011956,2]
[352239017,1739013104768,-1536.23,0.00011956,2]
[352239018,1739013104777,-500.0,0.00011956,2]
[352239019,1739013104787,-500.0,0.00011956,2]
[352239020,1739013104797,-773.18,0.00011956,2]
[352239021,1739013104806,-500.0,0.00011956,2]
[352239022,1739013104816,-611.63,0.00011956,2]
[352239023,1739013104826,-532.87,0.00011956,2]
[352239024,1739013104835,-500.0,0.00011956,2]
[352239025,1739013104845,-708.91,0.00011956,2]
[352239026,1739013104854,-500.0,0.00011956,2]
[352239027,1739013104864,-2071.14,0.00011956,2]
[352239028,1739013104873,-500.0,0.00011956,2]
[352239029,1739013104883,-500.0,0.00011956,2]
[352239030,1739013104893,-818.79,0.00011956,2]
[352239031,1739013104903,-500.0,0.00011956,2]
[352239032,1739013104912,-981.65,0.00011956,2]
[352239033,1739013104923,-506.48956664,0.00011956,2]
[352239034,1739013104934,-500.0,0.00011956,2]
[352239035,1739013104944,-500.0,0.00011956,2]
[352239036,1739013104953,-947.55,0.00011956,2]
[352239037,1739013104962,-500.0,0.00011956,2]